fUST/lending_fUST_20250830
["ID","MTS","AMOUNT","RATE_DAILY","PERIOD"]
[382262345,1756553442274,-480.0,0.00019178,2]
[382262346,1756553442283,-480.0,0.00019178,2]
[382262347,1756553442293,-480.0,0.00019178,2]
[382262348,1756553442302,-480.0,0.00019178,2]
[382262350,1756553442311,-311.79535272,0.00019178,2]
[382262352,1756553442321,-480.0,0.00019178,2]
[382262354,1756553442330,-480.0,0.00019178,2]
[382262355,1756553442340,-493.23,0.00019178,2]
[382262356,1756553442349,-484.70939186,0.00019178,2]
[382262357,1756553442358,-892.47,0.00019178,2]
[382262358,1756553442368,-480.0,0.00019178,2]
[382262359,1756553442378,-480.0,0.00019178,2]
[382262360,1756553442387,-412.3326806,0.00019178,2]
[382262361,1756553442397,-1254.79,0.00019178,2]
[382262362,1756553442408,-595.96040724,0.00019178,2]
[382262363,1756553442417,-480.0,0.00019178,2]
[382262364,1756553442427,-547.1,0.00019178,2]
[382262366,1756553442438,-1363.82,0.00019178,2]
[382262367,1756553442447,-500.0,0.00019178,2]
[382262368,1756553442457,-818.81,0.00019178,2]
[382262369,1756553442468,-1104.88,0.00019178,2]
[382262370,1756553442478,-480.0,0.00019178,2]
[382262371,1756553442488,-480.0,0.00019178,2]
[382262372,1756553442498,-480.0,0.00019178,2]
[382262373,1756553442507,-480.0,0.00019178,2]
[382262374,1756553442517,-663.5,0.00019178,2]
[382262375,1756553442527,-480.0,0.00019178,2]
[382262376,1756553442537,-415.43230139,0.00019178,2]
[382262377,1756553442546,-480.0,0.00019178,2]
[382262379,1756553442556,-480.0,0.00019178,2]
[382262380,1756553442567,-480.0,0.00019178,2]
[382262381,1756553442576,-480.0,0.00019178,2]
[382262382,1756553442586,-480.0,0.00019178,2]
[382262383,1756553442595,-480.0,0.00019178,2]
[382262384,1756553442605,-480.0,0.00019178,2]
[382262385,1756553442615,-480.0,0.00019178,2]
[382262386,1756553442770,-552.54,0.00019178,2]
[382262387,1756553442781,-480.0,0.00019178,2]
[382262388,1756553442791,-480.0,0.00019178,2]
[382262389,1756553442800,-480.0,0.00019178,2]
[382262390,1756553442810,-480.0,0.00019178,2]
[382262391,1756553442819,-481.91,0.00019178,2]
[382262392,1756553442829,-245.7444475,0.00019178,2]
[382262393,1756553442841,-480.0,0.00019178,2]
[382262394,1756553442850,-480.0,0.00019178,2]
[382262395,1756553442860,-480.0,0.00019178,2]
[382262396,1756553442870,-480.0,0.00019178,2]
[382262397,1756553442879,-480.0,0.00019178,2]
[382262398,1756553442889,-1320.14,0.00019178,2]
[382262399,1756553442899,-765.49,0.00019178,2]
[382262400,1756553442908,-480.0,0.00019178,2]
[382262401,1756553442918,-480.0,0.00019178,2]
[382262402,1756553442927,-1147.8,0.00019178,2]
[382262404,1756553442936,-480.0,0.00019178,2]
[382262405,1756553442945,-480.0,0.00019178,2]
[382262406,1756553442956,-480.0,0.00019178,2]
[382262407,1756553442965,-480.0,0.00019178,2]
[382262408,1756553442975,-480.0,0.00019178,2]
[382262409,1756553442984,-480.0,0.00019178,2]
[382262410,1756553442994,-480.0,0.00019178,2]
[382262412,1756553443003,-1388.64,0.00019178,2]
[382262413,1756553443012,-440.47135609,0.00019178,2]
[382262414,1756553443022,-480.0,0.00019178,2]
[382262416,1756553443031,-480.0,0.00019178,2]
[382262417,1756553443040,-617.48,0.00019178,2]
[382262418,1756553443051,-481.31,0.00019178,2]
[382262419,1756553443060,-480.0,0.00019178,2]
[382262420,1756553443071,-638.82,0.00019178,2]
[382262421,1756553443080,-480.0,0.00019178,2]
[382262422,1756553443089,-480.0,0.00019178,2]
[382262423,1756553443099,-480.0,0.00019178,2]
[382262424,1756553443109,-1286.28,0.00019178,2]
[382262425,1756553443119,-480.0,0.00019178,2]
[382262426,1756553443128,-514.94,0.00019178,2]
[382262427,1756553443137,-480.0,0.00019178,2]
[382262428,1756553443146,-480.0,0.00019178,2]
[382262429,1756553443156,-1077.57,0.00019178,2]
[382262430,1756553443165,-151.0,0.00019178,2]
[382262431,1756553443175,-482.42705495,0.00019178,2]
[382262433,1756553443184,-480.0,0.00019178,2]
[382262435,1756553443193,-151.0,0.00019178,2]
[382262437,1756553443202,-480.0,0.00019178,2]
[382262439,1756553443212,-480.0,0.00019178,2]
[382262441,1756553443222,-480.0,0.00019178,2]
[382262443,1756553443231,-480.0,0.00019178,2]
[382262445,1756553443241,-511.1,0.00019178,2]
[382262446,1756553443250,-480.0,0.00019178,2]
[382262447,1756553443259,-480.0,0.00019178,2]
[382262448,1756553443268,-480.0,0.00019178,2]
[382262449,1756553443278,-1642.27,0.00019178,2]
[382262450,1756553443287,-285.56119447,0.00019178,2]
[382262451,1756553443296,-231.34557866,0.00019178,2]
[382262452,1756553443305,-480.0,0.00019178,2]
[382262453,1756553443316,-480.0,0.00019178,2]
[382262454,1756553443326,-544.97,0.00019178,2]
[382262455,1756553443335,-480.0,0.00019178,2]
[382262456,1756553443345,-480.0,0.00019178,2]
[382262457,1756553443355,-480.0,0.00019178,2]
[382262458,1756553443365,-480.0,0.00019178,2]
[382262459,1756553443374,-480.0,0.00019178,2]
[382262460,1756553443383,-848.64,0.00019178,2]
[382262461,1756553443393,-480.0,0.00019178,2]
[382262462,1756553443403,-480.0,0.00019178,2]
[382262463,1756553443412,-1240.36,0.00019178,2]
[382262464,1756553443422,-480.0,0.00019178,2]
[382262465,1756553443432,-481.62165135,0.00019178,2]
[382262466,1756553443442,-480.0,0.00019178,2]
[382262467,1756553443451,-480.0,0.00019178,2]
[382262468,1756553443461,-480.0,0.00019178,2]
[382262469,1756553443470,-480.0,0.00019178,2]
[382262470,1756553443480,-480.0,0.00019178,2]
[382262471,1756553443490,-480.0,0.00019178,2]
[382262472,1756553443500,-480.0,0.00019178,2]
[382262473,1756553443509,-480.0,0.00019178,2]
[382262474,1756553443519,-480.0,0.00019178,2]
[382262475,1756553443529,-480.0,0.00019178,2]
[382262476,1756553443539,-480.0,0.00019178,2]
[382262477,1756553443549,-480.0,0.00019178,2]
[382262478,1756553443559,-416.82454787,0.00019178,2]
[382262479,1756553443568,-480.0,0.00019178,2]
[382262480,1756553443578,-480.0,0.00019178,2]
[382262481,1756553443588,-480.0,0.00019178,2]
[382262482,1756553443597,-1260.95,0.00019178,2]
[382262483,1756553443608,-480.0,0.00019178,2]
[382262484,1756553443618,-480.0,0.00019178,2]
[382262485,1756553443627,-480.0,0.00019178,2]
[382262486,1756553443637,-480.0,0.00019178,2]
[382262487,1756553443647,-480.0,0.00019178,2]
[382262488,1756553443657,-480.0,0.00019178,2]
[382262489,1756553443666,-480.0,0.00019178,2]
[382262490,1756553443676,-368.40924258,0.00019178,2]
[382262491,1756553443685,-480.0,0.00019178,2]
[382262492,1756553443695,-480.0,0.00019178,2]
[382262493,1756553443704,-480.0,0.00019178,2]
[382262494,1756553443715,-480.0,0.00019178,2]
[382262495,1756553443725,-480.0,0.00019178,2]
[382262496,1756553443734,-480.0,0.00019178,2]
[382262497,1756553443745,-1481.17,0.00019178,2]
[382262498,1756553443755,-480.0,0.00019178,2]
[382262499,1756553443765,-480.0,0.00019178,2]
[382262500,1756553443775,-480.0,0.00019178,2]
[382262501,1756553443785,-533.98,0.00019178,2]
[382262502,1756553443794,-480.0,0.00019178,2]
[382262503,1756553443805,-480.0,0.00019178,2]
[382262504,1756553443815,-625.54,0.00019178,2]
[382262505,1756553443825,-480.0,0.00019178,2]
[382262506,1756553443835,-480.0,0.00019178,2]
[382262507,1756553443845,-481.00183348,0.00019178,2]
[382262508,1756553443854,-480.0,0.00019178,2]
[382262509,1756553443864,-545.33,0.00019178,2]
[382262510,1756553443873,-480.0,0.00019178,2]
[382262511,1756553443883,-480.0,0.00019178,2]
[382262512,1756553443892,-480.0,0.00019178,2]
[382262513,1756553443901,-507.01,0.00019178,2]
[382262514,1756553443910,-480.0,0.00019178,2]
[382262515,1756553443920,-480.0,0.00019178,2]
[382262516,1756553443929,-480.0,0.00019178,2]
[382262517,1756553443938,-480.0,0.00019178,2]
[382262518,1756553443948,-480.0,0.00019178,2]
[382262519,1756553443957,-480.0,0.00019178,2]
[382262520,1756553443966,-480.0,0.00019178,2]
[382262521,1756553443976,-764.41,0.00019178,2]
[382262522,1756553443985,-500.0,0.00019178,2]
[382262523,1756553443995,-480.0,0.00019178,2]
[382262524,1756553444004,-480.0,0.00019178,2]
[382262525,1756553444014,-480.0,0.00019178,2]
[382262526,1756553444024,-151.0,0.00019178,2]
[382262527,1756553444033,-151.0,0.00019178,2]
[382262528,1756553444043,-480.0,0.00019178,2]
[382262529,1756553444053,-1222.42,0.00019178,2]
[382262530,1756553444063,-480.0,0.00019178,2]
[382262531,1756553444072,-500.0,0.00019178,2]
[382262532,1756553444082,-480.0,0.00019178,2]
[382262533,1756553444091,-480.0,0.00019178,2]
[382262534,1756553444101,-804.21,0.00019178,2]
[382262535,1756553444110,-639.24,0.00019178,2]
[382262536,1756553444119,-825.63,0.00019178,2]
[382262537,1756553444130,-1187.44,0.00019178,2]
[382262538,1756553444139,-379.59582698,0.00019178,2]
[382262539,1756553444148,-480.0,0.00019178,2]
[382262540,1756553444158,-482.19533852,0.00019178,2]
[382262541,1756553444168,-480.0,0.00019178,2]
[382262542,1756553444178,-480.0,0.00019178,2]
[382262543,1756553444187,-480.0,0.00019178,2]
[382262544,1756553444197,-480.0,0.00019178,2]
[382262545,1756553444207,-661.08,0.00019178,2]
[382262546,1756553444216,-480.0,0.00019178,2]
[382262547,1756553444226,-480.0,0.00019178,2]
[382262548,1756553444236,-480.0,0.00019178,2]
[382262549,1756553444246,-752.21,0.00019178,2]
[382262550,1756553444255,-1399.22,0.00019178,2]
[382262551,1756553444265,-480.0,0.00019178,2]
[382262552,1756553444274,-480.0,0.00019178,2]
[382262553,1756553444284,-480.0,0.00019178,2]
[382262554,1756553444295,-480.0,0.00019178,2]
[382262555,1756553444305,-480.0,0.00019178,2]
[382262556,1756553444315,-480.0,0.00019178,2]
[382262557,1756553444324,-480.0,0.00019178,2]
[382262558,1756553444334,-480.0,0.00019178,2]
[382262559,1756553444343,-480.0,0.00019178,2]
[382262560,1756553444355,-480.0,0.00019178,2]
[382262561,1756553444364,-490.33,0.00019178,2]
[382262562,1756553444374,-480.0,0.00019178,2]
[382262563,1756553444383,-480.0,0.00019178,2]
[382262564,1756553444393,-481.8981767,0.00019178,2]
[382262565,1756553444402,-480.0,0.00019178,2]
[382262566,1756553444412,-1243.97,0.00019178,2]
[382262567,1756553444422,-480.0,0.00019178,2]
[382262568,1756553444431,-480.0,0.00019178,2]
[382262569,1756553444440,-480.0,0.00019178,2]
[382262570,1756553444449,-480.0,0.00019178,2]
[382262571,1756553444459,-480.0,0.00019178,2]
[382262572,1756553444468,-480.0,0.00019178,2]
[382262573,1756553444477,-480.0,0.00019178,2]
[382262574,1756553444486,-1190.69,0.00019178,2]
[382262575,1756553444496,-480.0,0.00019178,2]
[382262576,1756553444505,-480.0,0.00019178,2]
[382262577,1756553444515,-480.0,0.00019178,2]
[382262578,1756553444524,-480.0,0.00019178,2]
[382262579,1756553444534,-480.0,0.00019178,2]
[382262580,1756553444543,-480.0,0.00019178,2]
[382262581,1756553444553,-484.78030225,0.00019178,2]
[382262582,1756553444562,-480.0,0.00019178,2]
[382262583,1756553444572,-513.93,0.00019178,2]
[382262584,1756553444581,-570.61,0.00019178,2]
[382262585,1756553444591,-670.2,0.00019178,2]
[382262586,1756553444600,-480.0,0.00019178,2]
[382262587,1756553444609,-568.67,0.00019178,2]
[382262588,1756553444619,-480.0,0.00019178,2]
[382262589,1756553444628,-480.0,0.00019178,2]
[382262590,1756553444638,-480.0,0.00019178,2]
[382262591,1756553444647,-1112.79,0.00019178,2]
[382262592,1756553444656,-480.0,0.00019178,2]
[382262593,1756553444665,-1291.86,0.00019178,2]
[382262594,1756553444674,-1121.7,0.00019178,2]
[382262595,1756553444683,-514.26,0.00019178,2]
[382262596,1756553444693,-570.83,0.00019178,2]
[382262597,1756553444702,-480.0,0.00019178,2]
[382262598,1756553444711,-480.0,0.00019178,2]
[382262599,1756553444721,-480.0,0.00019178,2]
[382262600,1756553444730,-480.0,0.00019178,2]
[382262601,1756553444739,-480.0,0.00019178,2]
[382262602,1756553444748,-480.0,0.00019178,2]
[382262603,1756553444758,-480.0,0.00019178,2]
[382262604,1756553444768,-480.0,0.00019178,2]
[382262605,1756553444777,-879.6,0.00019178,2]
[382262606,1756553444788,-543.64,0.00019178,2]
[382262607,1756553444797,-480.0,0.00019178,2]
[382262608,1756553444807,-151.0,0.00019178,2]
[382262609,1756553444816,-480.0,0.00019178,2]
[382262610,1756553444825,-1340.44,0.00019178,2]
[382262611,1756553444835,-856.78,0.00019178,2]
[382262612,1756553444844,-480.0,0.00019178,2]
[382262613,1756553444854,-480.0,0.00019178,2]
[382262614,1756553444863,-480.0,0.00019178,2]
[382262615,1756553444873,-480.0,0.00019178,2]
[382262616,1756553444882,-1000.0,0.00019178,2]
[382262617,1756553444892,-480.0,0.00019178,2]
[382262618,1756553444901,-480.0,0.00019178,2]
[382262619,1756553444910,-480.0,0.00019178,2]
[382262620,1756553444920,-480.0,0.00019178,2]
[382262621,1756553444929,-1102.59,0.00019178,2]
[382262622,1756553444939,-480.0,0.00019178,2]
[382262623,1756553444948,-480.0,0.00019178,2]
[382262624,1756553444963,-480.0,0.00019178,2]
[382262625,1756553444972,-500.0,0.00019178,2]
[382262626,1756553444981,-500.0,0.00019178,2]
[382262627,1756553444991,-500.0,0.00019178,2]
[382262628,1756553445001,-500.0,0.00019178,2]
[382262629,1756553445011,-500.0,0.00019178,2]
[382262630,1756553445022,-480.0,0.00019178,2]
[382262631,1756553445032,-480.0,0.00019178,2]
[382262632,1756553445042,-480.0,0.00019178,2]
[382262633,1756553445052,-1037.29,0.00019178,2]
[382262634,1756553445062,-480.0,0.00019178,2]
[382262635,1756553445071,-480.0,0.00019178,2]
[382262636,1756553445081,-392.33836996,0.00019178,2]
[382262637,1756553445090,-480.0,0.00019178,2]
[382262638,1756553445100,-1228.46,0.00019178,2]
[382262639,1756553445110,-480.0,0.00019178,2]
[382262640,1756553445120,-480.0,0.00019178,2]
[382262641,1756553445130,-480.0,0.00019178,2]
[382262642,1756553445140,-480.0,0.00019178,2]
[382262643,1756553445149,-480.0,0.00019178,2]
[382262644,1756553445159,-480.0,0.00019178,2]
[382262645,1756553445169,-500.0,0.00019178,2]
[382262646,1756553445179,-480.0,0.00019178,2]
[382262647,1756553445189,-500.0,0.00019178,2]
[382262648,1756553445199,-500.0,0.00019178,2]
[382262649,1756553445208,-500.0,0.00019178,2]
[382262650,1756553445217,-500.0,0.00019178,2]
[382262651,1756553445228,-482.09339551,0.00019178,2]
[382262652,1756553445238,-480.0,0.00019178,2]
[382262653,1756553445248,-480.0,0.00019178,2]
[382262654,1756553445258,-480.0,0.00019178,2]
[382262655,1756553445268,-480.0,0.00019178,2]
[382262656,1756553445277,-895.31,0.00019178,2]
[382262657,1756553445287,-480.54,0.00019178,2]
[382262658,1756553445296,-1392.48,0.00019178,2]
[382262659,1756553445306,-480.0,0.00019178,2]
[382262660,1756553445316,-480.0,0.00019178,2]
[382262661,1756553445325,-480.0,0.00019178,2]
[382262662,1756553445481,-480.0,0.00019178,2]
[382262663,1756553445492,-480.0,0.00019178,2]
[382262664,1756553445503,-560.68,0.00019178,2]
[382262665,1756553445513,-480.0,0.00019178,2]
[382262666,1756553445523,-480.0,0.00019178,2]
[382262667,1756553445533,-480.0,0.00019178,2]
[382262668,1756553445543,-480.0,0.00019178,2]
[382262669,1756553445553,-480.0,0.00019178,2]
[382262670,1756553445562,-480.0,0.00019178,2]
[382262671,1756553445573,-480.0,0.00019178,2]
[382262672,1756553445583,-480.0,0.00019178,2]
[382262673,1756553445592,-480.0,0.00019178,2]
[382262674,1756553445602,-813.72,0.00019178,2]
[382262675,1756553445613,-480.0,0.00019178,2]
[382262676,1756553445622,-480.0,0.00019178,2]
[382262677,1756553445633,-480.0,0.00019178,2]
[382262678,1756553445643,-701.79,0.00019178,2]
[382262679,1756553445655,-981.41,0.00019178,2]
[382262680,1756553445664,-480.0,0.00019178,2]
[382262681,1756553445673,-524.84,0.00019178,2]
[382262682,1756553445683,-652.09,0.00019178,2]
[382262684,1756553445693,-480.0,0.00019178,2]
[382262685,1756553445702,-480.0,0.00019178,2]
[382262686,1756553445711,-480.0,0.00019178,2]
[382262687,1756553445721,-480.0,0.00019178,2]
[382262688,1756553445730,-480.0,0.00019178,2]
[382262689,1756553445741,-480.0,0.00019178,2]
[382262690,1756553445750,-229.4621104,0.00019178,2]
[382262691,1756553445760,-480.0,0.00019178,2]
[382262692,1756553445770,-480.0,0.00019178,2]
[382262693,1756553445779,-480.0,0.00019178,2]
[382262694,1756553445789,-480.0,0.00019178,2]
[382262695,1756553445799,-480.0,0.00019178,2]
[382262696,1756553445808,-480.0,0.00019178,2]
[382262697,1756553445818,-480.0,0.00019178,2]
[382262698,1756553445829,-480.0,0.00019178,2]
[382262699,1756553445838,-480.0,0.00019178,2]
[382262700,1756553445852,-480.0,0.00019178,2]
[382262701,1756553445865,-480.0,0.00019178,2]
[382262702,1756553445875,-519.95,0.00019178,2]
[382262703,1756553445885,-480.0,0.00019178,2]
[382262704,1756553445894,-480.0,0.00019178,2]
[382262705,1756553445905,-480.29928445,0.00019178,2]
[382262706,1756553445914,-393.3810407,0.00019178,2]
[382262707,1756553445924,-480.0,0.00019178,2]
[382262708,1756553445934,-489.91,0.00019178,2]
[382262709,1756553445944,-485.49,0.00019178,2]
[382262710,1756553445955,-480.0,0.00019178,2]
[382262711,1756553445966,-553.48,0.00019178,2]
[382262712,1756553445977,-480.0,0.00019178,2]
[382262713,1756553445986,-480.0,0.00019178,2]
[382262714,1756553445996,-480.0,0.00019178,2]
[382262715,1756553446006,-480.0,0.00019178,2]
[382262716,1756553446015,-480.0,0.00019178,2]
[382262717,1756553446025,-480.0,0.00019178,2]
[382262718,1756553446034,-480.0,0.00019178,2]
[382262719,1756553446044,-480.0,0.00019178,2]
[382262720,1756553446054,-480.0,0.00019178,2]
[382262721,1756553446064,-481.76756872,0.00019178,2]
[382262722,1756553446074,-480.0,0.00019178,2]
[382262723,1756553446084,-480.0,0.00019178,2]
[382262724,1756553446094,-480.0,0.00019178,2]
[382262726,1756553446103,-480.0,0.00019178,2]
[382262727,1756553446113,-480.0,0.00019178,2]
[382262729,1756553446123,-916.63,0.00019178,2]
[382262731,1756553446133,-159.286329,0.00019178,2]
[382262733,1756553446146,-480.0,0.00019178,2]
[382262735,1756553446161,-480.0,0.00019178,2]
[382262736,1756553446171,-632.04,0.00019178,2]
[382262737,1756553446181,-500.0,0.00019178,2]
[382262738,1756553446191,-480.0,0.00019178,2]
[382262740,1756553446200,-1358.12,0.00019178,2]
[382262742,1756553446209,-480.0,0.00019178,2]
[382262744,1756553446218,-694.59,0.00019178,2]
[382262745,1756553446227,-480.0,0.00019178,2]
[382262747,1756553446236,-480.0,0.00019178,2]
[382262749,1756553446246,-480.0,0.00019178,2]
[382262751,1756553446255,-660.38,0.00019178,2]
[382262752,1756553446264,-480.0,0.00019178,2]
[382262753,1756553446275,-480.0,0.00019178,2]
[382262755,1756553446283,-480.0,0.00019178,2]
[382262756,1756553446293,-480.0,0.00019178,2]
[382262757,1756553446302,-1133.1,0.00019178,2]
[382262758,1756553446312,-611.87,0.00019178,2]
[382262759,1756553446321,-480.0,0.00019178,2]
[382262760,1756553446331,-480.0,0.00019178,2]
[382262761,1756553446341,-480.0,0.00019178,2]
[382262762,1756553446350,-521.68,0.00019178,2]
[382262763,1756553446360,-480.0,0.00019178,2]
[382262764,1756553446369,-480.0,0.00019178,2]
[382262765,1756553446378,-1283.89,0.00019178,2]
[382262766,1756553446388,-1088.63,0.00019178,2]
[382262767,1756553446398,-480.0,0.00019178,2]
[382262768,1756553446407,-515.64,0.00019178,2]
[382262769,1756553446417,-480.0,0.00019178,2]
[382262770,1756553446427,-480.0,0.00019178,2]
[382262771,1756553446436,-4718.79,0.00019178,2]
[382262772,1756553446445,-480.0,0.00019178,2]
[382262773,1756553446455,-480.0,0.00019178,2]
[382262774,1756553446464,-1276.46,0.00019178,2]
[382262775,1756553446473,-1403.03,0.00019178,2]
[382262776,1756553446483,-483.97603794,0.00019178,2]
[382262777,1756553446492,-480.0,0.00019178,2]
[382262778,1756553446501,-582.58,0.00019178,2]
[382262779,1756553446511,-480.0,0.00019178,2]
[382262780,1756553446520,-480.79572017,0.00019178,2]
[382262781,1756553446531,-1510.21,0.00019178,2]
[382262782,1756553446550,-480.0,0.00019178,2]
[382262783,1756553446560,-480.0,0.00019178,2]
[382262784,1756553446569,-480.0,0.00019178,2]
[382262785,1756553446579,-480.0,0.00019178,2]
[382262786,1756553446588,-2019.32,0.00019178,2]
[382262787,1756553446598,-1168.78,0.00019178,2]
[382262788,1756553446607,-480.0,0.00019178,2]
[382262789,1756553446617,-480.0,0.00019178,2]
[382262790,1756553446626,-480.0,0.00019178,2]
[382262791,1756553446635,-480.0,0.00019178,2]
[382262792,1756553446645,-480.0,0.00019178,2]
[382262793,1756553446654,-480.0,0.00019178,2]
[382262794,1756553446663,-528.78,0.00019178,2]
[382262795,1756553446673,-480.0,0.00019178,2]
[382262796,1756553446682,-480.0,0.00019178,2]
[382262797,1756553446691,-480.0,0.00019178,2]
[382262798,1756553446702,-151.0,0.00019178,2]
[382262799,1756553446711,-1418.58,0.00019178,2]
[382262800,1756553446720,-480.0,0.00019178,2]
[382262801,1756553446730,-530.52,0.00019178,2]
[382262802,1756553446739,-480.0,0.00019178,2]
[382262803,1756553446748,-480.0,0.00019178,2]
[382262804,1756553446757,-480.0,0.00019178,2]
[382262805,1756553446767,-480.0,0.00019178,2]
[382262806,1756553446776,-480.0,0.00019178,2]
[382262807,1756553446785,-480.0,0.00019178,2]
[382262808,1756553446795,-1111.91,0.00019178,2]
[382262809,1756553446804,-480.0,0.00019178,2]
[382262810,1756553446813,-935.27,0.00019178,2]
[382262811,1756553446823,-1308.0,0.00019178,2]
[382262812,1756553446833,-480.0,0.00019178,2]
[382262813,1756553446842,-521.92,0.00019178,2]
[382262814,1756553446852,-547.1,0.00019178,2]
[382262815,1756553446861,-461.89746466,0.00019178,2]
[382262816,1756553446870,-213.67289618,0.00019178,2]
[382262817,1756553446880,-480.0,0.00019178,2]
[382262818,1756553446892,-480.0,0.00019178,2]
[382262819,1756553446901,-480.0,0.00019178,2]
[382262820,1756553446911,-1327.4,0.00019178,2]
[382262821,1756553446920,-1381.08,0.00019178,2]
[382262822,1756553446929,-480.0,0.00019178,2]
[382262823,1756553446938,-984.27,0.00019178,2]
[382262824,1756553446947,-1057.43,0.00019178,2]
[382262825,1756553446956,-480.0,0.00019178,2]
[382262826,1756553446965,-480.0,0.00019178,2]
[382262827,1756553446974,-667.27,0.00019178,2]
[382262828,1756553446983,-3451.83,0.00019178,2]
[382262829,1756553446992,-640.33,0.00019178,2]
[382262830,1756553447002,-480.0,0.00019178,2]
[382262831,1756553447011,-480.0,0.00019178,2]
[382262832,1756553447021,-480.0,0.00019178,2]
[382262833,1756553447030,-1081.16,0.00019178,2]
[382262834,1756553447039,-509.72315815,0.00019178,2]
[382262835,1756553447048,-1395.68,0.00019178,2]
[382262836,1756553447057,-480.0,0.00019178,2]
[382262837,1756553447066,-480.0,0.00019178,2]
[382262838,1756553447075,-1867.75,0.00019178,2]
[382262839,1756553447084,-644.65,0.00019178,2]
[382262840,1756553447093,-569.43,0.00019178,2]
[382262841,1756553447103,-480.0,0.00019178,2]
[382262842,1756553447112,-480.0,0.00019178,2]
[382262843,1756553447121,-480.0,0.00019178,2]
[382262844,1756553447131,-480.0,0.00019178,2]
[382262845,1756553447140,-1596.0,0.00019178,2]
[382262846,1756553447149,-480.0,0.00019178,2]
[382262847,1756553447160,-480.0,0.00019178,2]
[382262848,1756553447170,-1701.83,0.00019178,2]
[382262849,1756553447179,-480.0,0.00019178,2]
[382262850,1756553447188,-480.0,0.00019178,2]
[382262851,1756553447197,-1279.99,0.00019178,2]
[382262852,1756553447207,-151.644077,0.00019178,2]
[382262853,1756553447217,-1188.18,0.00019178,2]
[382262854,1756553447227,-507.42,0.00019178,2]
[382262855,1756553447237,-495.15,0.00019178,2]
[382262856,1756553447246,-480.0,0.00019178,2]
[382262857,1756553447255,-812.73,0.00019178,2]
[382262858,1756553447264,-480.0,0.00019178,2]
[382262859,1756553447273,-1242.23,0.00019178,2]
[382262860,1756553447283,-480.0,0.00019178,2]
[382262861,1756553447292,-480.0,0.00019178,2]
[382262862,1756553447302,-151.0,0.00019178,2]
[382262863,1756553447310,-485.38515749,0.00019178,2]
[382262864,1756553447319,-480.0,0.00019178,2]
[382262865,1756553447328,-151.0,0.00019178,2]
[382262866,1756553447337,-1682.98,0.00019178,2]
[382262867,1756553447346,-480.0,0.00019178,2]
[382262868,1756553447355,-480.0,0.00019178,2]
[382262869,1756553447365,-519.43,0.00019178,2]
[382262870,1756553447374,-480.0,0.00019178,2]
[382262871,1756553447383,-480.0,0.00019178,2]
[382262872,1756553447392,-480.0,0.00019178,2]